bitfinex/quotes_ETHUSD_20240827
["timestamp","ask_amount","ask_price","bid_price","bid_amount"]
[1724792433768,3.8628,2588.8,2588.5,2.22907837]
[1724792434003,7.72573,2588.8,2588.5,2.22907837]
[1724792434206,0.25141458,2588.7,2588.5,2.22907837]
[1724792434640,7.72573,2588.8,2588.5,2.22907837]
[1724792434641,3.8628,2588.8,2588.5,2.22907837]
[1724792434840,0.25141458,2588.6,2588.5,2.22907837]
[1724792435040,3.86296,2588.7,2588.5,2.22907837]
[1724792435227,0.25141458,2588.6,2588.5,2.22907837]
[1724792435832,4.11450458,2588.6,2588.5,0.55]
[1724792436151,6.57780458,2588.6,2588.5,0.55]
[1724792436327,6.57780458,2588.6,2588.3,0.55]
[1724792437459,3.86325,2588.5,2588.3,0.55]
[1724792437950,0.25126779,2588.4,2588.3,0.55]
[1724792440634,4.11465779,2588.4,2588.3,0.55]
[1724792441349,4.11465779,2588.4,2588.1,2.22907837]
[1724792443478,3.86354,2588.3,2588.1,2.22907837]
[1724792443806,0.25126779,2588.2,2588.1,2.22907837]
[1724792444009,3.86354,2588.3,2588.1,2.22907837]
[1724792444214,0.25126779,2588.2,2588.1,2.22907837]
[1724792444374,3.86354,2588.3,2588.1,2.22907837]
[1724792444575,0.25126779,2588.2,2588.1,2.22907837]
[1724792444793,3.86354,2588.3,2588.1,2.22907837]
[1724792445002,0.25126779,2588.2,2588.1,2.22907837]
[1724792445209,7.7266,2588.5,2588.1,2.22907837]
[1724792445412,0.25126779,2588.4,2588.1,2.45198621]
[1724792445710,4.11469779,2588.4,2588.1,2.45198621]
[1724792446212,4.11469779,2588.4,2588.1,4.83768621]
[1724792446416,0.25126779,2588.4,2588.1,4.83768621]
[1724792447888,4.11467779,2588.4,2588.1,4.83768621]
[1724792449233,4.11467779,2588.4,2588.1,2.9357]
[1724792450540,4.11467779,2588.4,2588.1,0.55]
[1724792451035,3.86361,2588.3,2588.1,0.55]
[1724792451196,7.97831839,2588.3,2588.1,0.55]
[1724792451394,3.86368,2588.2,2588.1,0.55]
[1724792451596,3.86368,2588.2,2587.9,2.22907837]
[1724792452139,0.25103839,2588.1,2587.9,2.22907837]
[1724792457855,4.11487839,2588.1,2587.9,2.22907837]
[1724792458211,0.25103839,2588.1,2587.9,2.69329621]
[1724792458549,3.86339,2588.5,2588.0,2.47857483]
[1724792458707,3.86311,2588.6,2588.4,1.67907837]
[1724792458903,2.40378651,2589.2,2588.5,1.67907837]
[1724792458904,3.86268,2588.9,2588.5,1.67907837]
[1724792459122,7.72544,2588.9,2588.7,1.67907837]
[1724792459324,3.86279,2588.8,2588.7,1.67907837]
[1724792459557,3.86279,2588.8,2588.7,2.22907837]
[1724792459923,3.86279,2588.8,2588.7,0.55]
[1724792460123,3.86299,2588.7,2588.6,0.55]
[1724792460447,7.72602,2588.7,2588.4,0.55]
[1724792460615,3.86324,2588.5,2588.4,0.55]
[1724792460949,3.86324,2588.5,2588.2,2.22907837]
[1724792461751,3.86324,2588.5,2588.4,1.67907837]
[1724792461953,3.86324,2588.5,2588.4,2.22907837]
[1724792464352,3.86314,2588.6,2588.4,2.22907837]
[1724792464553,3.86314,2588.6,2588.5,0.55]
[1724792466190,6.12389,2588.5,2588.3,0.55]
[1724792468669,7.72631,2588.6,2588.3,0.55]
[1724792469082,3.86288,2588.8,2588.3,0.55]
[1724792469372,3.86288,2588.8,2588.1,0.55]
[1724792469373,6.12416,2588.3,2588.1,0.55]
[1724792469927,9.98782,2588.3,2588.1,0.55]
[1724792470384,9.98782,2588.3,2588.0,0.55]
[1724792470785,9.98779,2588.3,2588.0,0.55]
[1724792471107,6.12416,2588.3,2588.0,0.55]
[1724792471674,3.86356,2588.3,2588.0,0.55]
[1724792471899,2.2606,2588.2,2588.0,0.55]
[1724792472079,3.86383,2588.1,2588.0,0.55]
[1724792472411,3.86383,2588.1,2587.9,0.55]
[1724792472412,4.11497852,2588.1,2587.9,0.55]
[1724792474728,0.25114852,2588.1,2588.0,4.08437837]
[1724792475026,5.8627,2588.9,2588.1,2.4053]
[1724792475027,3.8629,2588.8,2588.1,2.4053]
[1724792475188,3.86294,2588.7,2588.4,1.67907837]
[1724792475398,3.86294,2588.7,2588.5,0.55]
[1724792476282,3.86274,2588.9,2588.6,1.67907837]
[1724792476486,3.86214,2589.3,2588.8,4.08437837]
[1724792476679,3.86166,2589.6,2589.0,1.67907837]
[1724792476680,3.86189,2589.4,2589.0,1.67907837]
[1724792476882,3.86189,2589.4,2589.2,1.67907837]
[1724792477113,3.86189,2589.4,2589.3,0.55]
[1724792478121,3.86189,2589.4,2588.9,0.54068245]
[1724792478326,3.86189,2589.4,2589.0,1.24772286]
[1724792478624,3.86206,2589.3,2589.0,1.24772286]
[1724792479201,3.86206,2589.3,2589.0,0.55]
[1724792479523,6.35096,2589.3,2589.0,0.55]
[1724792480199,3.86234,2589.1,2589.0,0.55]
[1724792483469,3.86224,2589.2,2589.0,0.55]
[1724792483603,3.86234,2589.1,2589.0,0.55]
[1724792487313,4.10526761,2589.1,2589.0,0.55]
[1724792492706,4.10526761,2589.1,2588.6,2.4053]
[1724792492922,3.86265,2588.9,2588.7,0.55]
[1724792493528,0.24318538,2588.8,2588.7,0.55]
[1724792493857,0.24318538,2588.8,2588.7,2.02127661]
[1724792494194,3.86219,2589.2,2588.7,2.02127661]
[1724792494351,0.24318538,2588.8,2588.7,2.02127661]
[1724792494655,3.86219,2589.2,2588.7,2.02127661]
[1724792494952,0.24318538,2588.8,2588.7,2.02127661]
[1724792495121,3.86219,2589.2,2588.7,2.02127661]
[1724792495328,3.86219,2589.2,2588.8,0.82895766]
[1724792495546,3.86219,2589.2,2588.9,0.55]
[1724792496062,3.86219,2589.2,2588.7,0.55]
[1724792496628,3.86237,2589.1,2588.7,0.55]
[1724792498353,3.86257,2589.0,2588.7,0.55]
[1724792501162,3.86289,2588.8,2588.3,2.3434]
[1724792501466,3.86297,2588.7,2588.3,2.3434]
[1724792502061,2.9559705,2588.8,2588.3,2.3434]
[1724792502233,0.24318538,2588.6,2588.3,2.3434]
[1724792502435,0.24318538,2588.6,2588.4,0.55]
[1724792502638,2.9559705,2588.8,2588.4,0.55]
[1724792502842,2.9559705,2588.8,2588.4,1.225699]
[1724792503253,0.2434247,2588.7,2588.4,1.225699]
[1724792503458,2.9559705,2588.8,2588.4,1.225699]
[1724792503663,0.2434247,2588.7,2588.4,1.225699]
[1724792503867,2.9559705,2588.8,2588.5,0.3569099]
[1724792504062,2.9559705,2588.8,2588.6,0.55]
[1724792504063,0.2434247,2588.7,2588.6,0.55]
[1724792504372,2.9559705,2588.8,2588.6,0.55]
[1724792504570,4.1064947,2588.7,2588.5,0.55]
[1724792504732,4.1064947,2588.7,2588.4,0.55]
[1724792505071,0.2434247,2588.7,2588.4,0.55]
[1724792505287,6.19719,2588.6,2588.2,0.55]
[1724792505577,6.44057788,2588.6,2588.2,0.55]
[1724792505784,6.44057788,2588.6,2588.2,1.225729]
[1724792509145,3.8633,2588.5,2588.2,0.55]
[1724792509545,0.24338788,2588.4,2588.0,0.55]
[1724792511250,4.10677788,2588.4,2588.0,0.55]
[1724792512147,4.10677788,2588.4,2588.0,2.23107302]
[1724792512349,7.97024788,2588.4,2588.1,1.1935173]
[1724792512581,7.97024788,2588.4,2588.2,0.55]
[1724792513341,7.06350388,2588.4,2588.2,0.55]
[1724792513567,0.23527495,2588.3,2588.2,0.55]
[1724792514449,4.09880495,2588.3,2588.2,0.55]
[1724792515581,0.23527495,2588.3,2588.2,0.55]
[1724792515752,0.23527495,2588.3,2588.2,0.89245903]
[1724792516083,4.09880495,2588.3,2588.2,0.89245903]
[1724792516294,4.09880495,2588.3,2588.2,0.55]
[1724792520194,3.86398,2588.0,2587.9,9.7041]
[1724792520514,4.09855529,2588.0,2587.9,4.01517302]
[1724792520692,4.09855529,2588.0,2587.9,4.41669032]
[1724792521618,0.23457529,2588.0,2587.9,4.96669032]
[1724792521979,7.72759,2588.2,2587.9,4.96669032]
[1724792521980,7.72756,2588.2,2587.9,4.96669032]
[1724792522195,3.86377,2588.2,2588.0,0.55]
[1724792522396,7.72757,2588.2,2588.0,0.55]
[1724792522596,7.72757,2588.2,2588.0,1.04666903]
[1724792522975,3.86377,2588.2,2588.0,1.04666903]
[1724792523491,7.72754,2588.2,2588.0,1.04666903]
[1724792523813,3.86377,2588.2,2588.0,1.04666903]
[1724792527218,7.72754,2588.2,2588.0,1.04666903]
[1724792527428,3.86383,2588.1,2588.0,0.55]
[1724792528010,3.86399,2588.0,2587.8,0.55]
[1724792528372,3.8637,2588.2,2587.8,0.55]
[1724792528373,3.86385,2588.1,2587.8,0.55]
[1724792530808,7.72748,2588.2,2587.8,0.55]
[1724792530978,3.8637,2588.2,2587.8,1.3991523]
[1724792532344,0.23438193,2588.1,2587.8,1.3991523]
[1724792540067,4.09822193,2588.1,2587.8,1.3991523]
[1724792542095,0.23438193,2588.1,2587.8,1.3991523]
[1724792542401,0.23438193,2588.1,2587.9,8.00442302]
[1724792542549,0.23438193,2588.1,2588.0,1.49035753]
[1724792542753,3.8635,2588.4,2588.0,1.49035753]
[1724792542997,0.23418856,2588.1,2588.0,1.49035753]
[1724792543195,3.8635,2588.4,2588.0,1.49035753]
[1724792543397,0.23418856,2588.1,2588.0,1.49035753]
[1724792543896,3.8635,2588.4,2588.0,1.49035753]
[1724792544070,0.23418856,2588.3,2588.0,1.49035753]
[1724792546067,0.23418856,2588.3,2588.1,0.56307306]
[1724792546285,3.8632,2588.6,2588.2,3.0093]
[1724792546457,0.23418855,2588.5,2588.2,3.0093]
[1724792546657,3.86345,2588.4,2588.2,0.55]
[1724792546892,0.23418855,2588.3,2588.1,0.55]
[1724792547376,4.09773855,2588.3,2588.1,0.55]
[1724792551171,4.09773855,2588.3,2587.9,0.55]
[1724792551358,4.09773855,2588.3,2588.0,0.441428]
[1724792551675,4.09773855,2588.3,2588.1,0.55]
[1724792553694,4.09773855,2588.3,2587.9,0.55]
[1724792557479,4.09773855,2588.3,2587.8,0.55]
[1724792559103,4.09773855,2588.3,2587.8,4.41427]
[1724792559324,0.23418855,2588.3,2588.0,2.358]
[1724792559513,0.23418855,2588.3,2588.2,6.22168]
[1724792559673,3.8629,2588.8,2588.2,6.77168]
[1724792559873,3.8629,2588.8,2588.3,1.68107302]
[1724792559874,0.23412409,2588.7,2588.3,1.68107302]
[1724792560075,3.8629,2588.8,2588.4,0.55]
[1724792560314,0.23412409,2588.7,2588.4,0.55]
[1724792560614,3.86302,2588.7,2588.4,0.55]
[1724792560776,0.23412409,2588.6,2588.4,0.55]
[1724792560976,0.23412409,2588.6,2588.4,1.47980283]
[1724792562388,0.23412409,2588.6,2588.4,0.55]
[1724792562783,0.23412409,2588.6,2588.4,2.23107302]
[1724792562992,2.4252,2589.4,2588.6,2.358]
[1724792563198,3.86216,2589.3,2588.8,1.68107302]
[1724792563405,3.86216,2589.3,2588.8,2.53400341]
[1724792563406,3.86223,2589.2,2588.8,2.53400341]
[1724792563588,3.86223,2589.2,2588.9,0.55]
[1724792563770,3.86185,2589.5,2589.0,2.392]
[1724792563972,3.86185,2589.5,2589.2,1.68107302]
[1724792564220,3.86184,2589.5,2589.0,4.07307302]
[1724792564581,3.86165,2589.6,2589.0,4.07307302]
[1724792564775,3.86184,2589.5,2589.0,4.07307302]
[1724792566787,3.86165,2589.6,2589.1,2.3083129]
[1724792567708,6.20832,2589.8,2589.2,1.68107302]
[1724792568022,3.86132,2589.8,2589.4,2.2502]
[1724792568227,9.31908,2590.0,2589.4,3.93127302]
[1724792568228,9.31907,2590.0,2589.4,3.93127302]
[1724792568383,0.931908,2589.9,2589.4,4.00850291]
[1724792569021,0.931908,2589.9,2589.5,1.68107302]
[1724792569533,0.931908,2589.9,2589.4,2.32742989]
[1724792569534,0.931908,2589.9,2589.4,4.00850291]
[1724792569713,4.793058,2589.9,2589.5,2.23107302]
[1724792569918,4.793058,2589.9,2589.5,0.55]
[1724792570297,3.86133,2589.8,2589.5,0.55]
[1724792574392,7.72271,2589.8,2589.5,0.55]
[1724792575726,3.86133,2589.8,2589.5,0.55]
[1724792575931,7.72274,2589.8,2589.5,0.55]
[1724792576305,3.86133,2589.8,2589.5,0.55]
[1724792577126,0.23632401,2589.7,2589.5,0.55]
[1724792577327,3.86133,2589.8,2589.5,0.55]
[1724792577633,0.23632401,2589.7,2589.5,0.55]
[1724792578001,3.86133,2589.8,2589.5,0.55]
[1724792578201,0.23632401,2589.6,2589.5,0.55]
[1724792578396,3.86133,2589.8,2589.5,0.55]
[1724792578596,0.23632401,2589.6,2589.5,0.55]
[1724792579090,3.86133,2589.8,2589.5,0.55]
[1724792579321,0.23677487,2589.7,2589.5,0.55]
[1724792579531,3.86133,2589.8,2589.5,0.55]
[1724792579735,0.23677487,2589.6,2589.5,0.55]
[1724792580040,3.86133,2589.8,2589.5,0.55]
[1724792580242,0.23677487,2589.6,2589.5,0.55]
[1724792580399,3.86133,2589.8,2589.5,0.55]
[1724792580602,0.23677487,2589.6,2589.5,0.55]
[1724792580806,3.86133,2589.8,2589.5,0.55]
[1724792581009,0.23677487,2589.6,2589.5,0.55]
[1724792581246,3.86133,2589.8,2589.5,0.55]
[1724792581452,0.23673808,2589.6,2589.5,0.55]
[1724792581747,0.23672888,2589.6,2589.5,0.55]
[1724792582749,3.86133,2589.8,2589.5,0.55]
[1724792583040,0.23672888,2589.6,2589.5,0.55]
[1724792583246,7.72271,2589.8,2589.5,0.55]
[1724792583462,0.23671968,2589.6,2589.5,0.55]
[1724792583648,7.72271,2589.8,2589.5,0.55]
[1724792583950,6.23323,2589.8,2589.5,0.55]
[1724792584111,4.09816968,2589.7,2589.3,0.55]
[1724792585548,0.23671968,2589.7,2589.3,0.55]
[1724792585910,10.09465,2589.8,2589.3,0.55]
[1724792586110,4.09818968,2589.7,2589.3,0.55]
[1724792590149,0.23671968,2589.7,2589.3,2.9302]
[1724792590615,7.72275,2589.8,2589.3,2.9302]
[1724792590816,0.23671968,2589.6,2589.3,2.9302]
[1724792591014,3.86146,2589.7,2589.3,2.9302]
[1724792591256,0.23671968,2589.5,2589.3,2.9302]
[1724792591552,0.23671968,2589.4,2589.3,2.9302]
[1724792591911,3.86146,2589.7,2589.3,2.9302]
[1724792592244,0.23671968,2589.6,2589.3,2.9302]
[1724792594838,0.23671968,2589.6,2589.4,1.68107302]
[1724792595154,3.86116,2589.9,2589.5,0.55]
[1724792595956,3.86105,2590.0,2589.5,0.55]
[1724792596247,3.86086,2590.1,2589.8,1.68107302]
[1724792596447,3.86086,2590.1,2589.9,0.55]
[1724792596958,3.86086,2590.1,2589.7,0.55]
[1724792597155,3.8603,2590.5,2589.7,0.55]
[1724792597156,0.40427275,2590.8,2589.8,4.10857302]
[1724792597387,3.86049,2590.4,2590.0,1.68107302]
[1724792597592,3.86055,2590.3,2590.0,1.68107302]
[1724792597881,3.86055,2590.3,2590.1,0.55]
[1724792599485,3.86055,2590.3,2590.1,2.23107302]
[1724792599682,3.86055,2590.3,2590.1,4.65857302]
[1724792600588,3.86055,2590.3,2590.1,2.9775]
[1724792601582,3.86038,2590.5,2590.1,4.65857302]
[1724792602785,7.72074,2590.5,2590.1,4.65857302]
[1724792603100,3.86041,2590.4,2590.1,4.65857302]
[1724792603448,3.86041,2590.4,2590.1,2.9775]
[1724792603653,3.86041,2590.4,2590.1,3.05470908]
[1724792604288,3.86041,2590.4,2590.1,4.7357821]
[1724792605770,3.86041,2590.4,2590.1,3.05470908]
[1724792606149,3.86041,2590.4,2590.1,2.9775]
[1724792607190,0.23666448,2590.3,2590.1,2.9775]
[1724792607768,0.23666448,2590.3,2590.1,4.73578225]
[1724792607965,0.23666448,2590.3,2590.1,3.52828745]
[1724792608989,0.23666448,2590.3,2590.2,1.68107302]
[1724792609152,3.85983,2590.8,2590.3,2.3082]
[1724792609354,3.85983,2590.8,2590.3,3.98927302]
[1724792609556,7.71972,2590.8,2590.4,2.23107302]
[1724792609793,7.71972,2590.8,2590.4,1.5581046]
[1724792610183,3.85983,2590.8,2590.4,3.23917762]
[1724792610369,3.85961,2591.0,2590.7,3.98927302]
[1724792610555,3.85961,2591.0,2590.8,0.55]
[1724792610959,7.71924,2591.0,2590.8,0.55]
[1724792611687,3.85961,2591.0,2590.8,0.55]
[1724792615407,7.71925,2591.0,2590.8,0.55]
[1724792615591,3.85966,2590.9,2590.8,0.55]
[1724792615796,3.85966,2590.9,2590.6,0.55]
[1724792617463,3.85961,2591.0,2590.6,0.55]
[1724792618915,6.15571,2591.2,2590.6,0.55]
[1724792619271,6.15571,2591.2,2590.6,2.23107302]
[1724792619691,3.85943,2591.1,2590.6,2.23107302]
[1724792621183,3.25691522,2591.1,2590.6,4.19492832]
[1724792621377,3.25691522,2591.1,2590.7,1.68107302]
[1724792621583,3.25691522,2591.1,2590.8,0.55]
[1724792621797,3.25691522,2591.1,2590.8,2.8669]
[1724792622331,0.23841171,2591.0,2590.8,2.8669]
[1724792624517,0.23841171,2591.0,2590.8,0.55]
[1724792624721,0.23841171,2591.0,2590.7,0.55]
[1724792624987,0.23841171,2591.0,2590.7,1.0007184]
[1724792625227,4.09800171,2591.0,2590.7,0.55]
[1724792634230,0.23841171,2591.0,2590.7,0.55]
[1724792635823,4.09792171,2591.0,2590.7,0.55]
[1724792639663,3.85975,2590.9,2590.7,0.55]
[1724792639833,3.85981,2590.8,2590.7,0.55]
[1724792640364,4.09826767,2590.8,2590.7,0.55]
[1724792640550,4.09826767,2590.8,2590.5,0.55]
[1724792641353,4.09826767,2590.8,2590.1,12.89357822]
[1724792641354,3.86049,2590.4,2590.1,7.37]
[1724792641922,3.86066,2590.3,2590.1,7.37]
[1724792642119,3.86049,2590.4,2590.1,7.37]
[1724792642321,0.23856796,2590.2,2590.1,7.37]
[1724792642519,3.86059,2590.3,2590.0,1.68107302]
[1724792642766,0.23856796,2590.2,2590.0,1.68107302]
[1724792643059,7.72101,2590.4,2590.0,1.68107302]
[1724792643269,0.23856796,2590.1,2590.0,1.68107302]
[1724792643561,7.72101,2590.4,2590.0,3.01057832]
[1724792643768,0.23856796,2590.1,2590.0,3.01057832]
[1724792644363,3.86056,2590.3,2590.0,3.01057832]
[1724792644554,0.23856796,2590.1,2590.0,3.01057832]
[1724792644754,3.86072,2590.2,2590.0,0.55]
[1724792644930,3.86072,2590.2,2589.9,0.55]
[1724792644931,0.23856796,2590.1,2589.9,0.55]
[1724792645125,4.09941796,2590.1,2589.9,0.55]
[1724792645649,4.09941796,2590.1,2589.8,0.55]
[1724792646569,4.09941796,2590.1,2589.7,0.55]
[1724792646864,4.09941796,2590.1,2589.7,2.1215223]
[1724792647553,0.23856796,2590.1,2589.7,2.1215223]
[1724792648073,0.23856796,2590.1,2589.7,3.80259532]
[1724792649526,0.23856796,2590.1,2589.8,1.68107302]
[1724792649730,0.23856796,2590.1,2589.9,0.55]
[1724792649930,0.23856796,2590.1,2589.9,1.37140353]
[1724792650932,0.23856796,2590.1,2589.9,0.55]
[1724792651132,0.13146596,2590.1,2589.8,0.55]
[1724792651354,0.23458419,2590.1,2589.8,0.55]
[1724792652969,3.8599,2590.8,2590.2,6.34668]
[1724792653174,3.85973,2590.9,2590.5,1.68107302]
[1724792653356,3.85951,2591.0,2590.5,1.68107302]
[1724792653554,3.85951,2591.0,2590.6,0.55]
[1724792654241,3.85946,2591.1,2590.6,3.036]
[1724792654571,3.85946,2591.1,2590.7,0.8577253]
[1724792654774,3.85946,2591.1,2590.8,0.55]
[1724792655261,7.71889,2591.1,2590.7,0.55]
[1724792655433,3.85944,2591.1,2590.7,0.55]
[1724792655783,3.85944,2591.1,2590.7,3.08879832]
[1724792656140,3.85944,2591.1,2590.7,1.4077253]
[1724792657271,7.71889,2591.1,2590.7,1.4077253]
[1724792657686,3.85944,2591.1,2590.7,1.4077253]
[1724792657845,7.71889,2591.1,2590.7,1.4077253]
[1724792658486,3.85952,2591.0,2590.7,1.4077253]
[1724792659974,3.85968,2590.9,2590.7,0.55]
[1724792660290,3.85968,2590.9,2590.5,2.23107302]
[1724792660447,0.21887615,2590.8,2590.5,2.23107302]
[1724792662854,3.85951,2591.0,2590.5,2.23107302]
[1724792663075,3.85951,2591.0,2590.6,1.2437703]
[1724792663076,0.21887615,2590.7,2590.6,1.2437703]
[1724792663245,3.85951,2591.0,2590.6,1.2437703]
[1724792665651,3.85951,2591.0,2590.7,0.55]
[1724792667288,0.21930971,2590.9,2590.7,0.55]
[1724792667451,3.85944,2591.1,2590.8,2.486]
[1724792667645,0.21930971,2591.0,2590.9,0.55]
[1724792671178,3.85915,2591.3,2590.9,0.55]
[1724792671399,0.2192636,2591.0,2590.9,0.55]
[1724792671601,3.85915,2591.3,2590.9,1.4076983]
[1724792671805,0.2192636,2591.0,2590.9,0.55]
[1724792672276,3.85921,2591.2,2590.9,0.55]
[1724792672482,0.2192636,2591.0,2590.9,0.55]
[1724792672683,3.85921,2591.2,2590.9,0.55]
[1724792672922,0.2192636,2591.0,2590.9,0.55]
[1724792673225,3.85921,2591.2,2590.9,0.55]
[1724792673412,0.2192636,2591.0,2590.9,0.55]
[1724792673610,3.85921,2591.2,2590.9,0.55]
[1724792674117,0.2192636,2591.1,2590.9,0.55]
[1724792675527,0.2192636,2591.1,2590.9,2.70278032]
[1724792675724,7.71833,2591.3,2591.0,1.68107302]
[1724792675917,3.85915,2591.3,2591.1,0.55]
[1724792676423,3.85921,2591.2,2591.0,0.55]
[1724792676786,3.85921,2591.2,2591.0,1.07659695]
[1724792680192,7.71799,2591.4,2591.0,0.55]
[1724792680392,3.8591,2591.3,2591.0,0.55]
[1724792681232,3.85895,2591.4,2591.0,0.55]
[1724792681404,3.85877,2591.5,2591.1,1.04991481]
[1724792681603,3.85877,2591.5,2591.2,0.55]
[1724792681807,3.85877,2591.5,2591.0,0.55]
[1724792682513,0.21954025,2591.4,2591.1,2.4718]
[1724792682689,3.85871,2591.6,2591.2,0.55]
[1724792682895,0.21954025,2591.3,2591.2,0.55]
[1724792683125,3.85877,2591.5,2591.2,1.238127]
[1724792683304,0.21954025,2591.3,2591.2,1.238127]
[1724792683505,3.85877,2591.5,2591.2,1.238127]
[1724792683710,0.21954025,2591.3,2591.2,1.238127]
[1724792684028,3.85877,2591.5,2591.2,1.238127]
[1724792684203,0.21954025,2591.3,2591.2,1.238127]
[1724792684403,3.85877,2591.5,2591.2,1.238127]
[1724792684605,0.21954025,2591.3,2591.2,1.238127]
[1724792684806,3.85877,2591.5,2591.2,1.238127]
[1724792685007,0.21954025,2591.3,2591.2,1.238127]
[1724792685202,3.85877,2591.5,2591.2,1.238127]
[1724792685414,0.21954025,2591.3,2591.2,1.238127]
[1724792685616,3.85877,2591.5,2591.2,1.238127]
[1724792685791,0.21954025,2591.3,2591.2,1.238127]
[1724792685997,3.85877,2591.5,2591.2,1.238127]
[1724792686232,0.21954025,2591.3,2591.2,1.238127]
[1724792686397,3.85877,2591.5,2591.2,1.238127]
[1724792686593,0.21954025,2591.3,2591.2,1.238127]
[1724792686794,3.85877,2591.5,2591.2,1.238127]
[1724792687001,0.21954025,2591.3,2591.2,1.238127]
[1724792687222,3.85877,2591.5,2591.2,1.238127]
[1724792687425,0.21954025,2591.3,2591.2,1.238127]
[1724792687596,3.85877,2591.5,2591.2,1.238127]
[1724792687942,7.71715,2591.7,2591.2,1.238127]
[1724792688234,0.21954025,2591.4,2591.3,0.5391]
[1724792688537,0.21954025,2591.4,2591.3,1.0891]
[1724792688721,7.71715,2591.7,2591.3,1.0891]
[1724792689029,7.71715,2591.7,2591.4,0.55]
[1724792689238,7.71712,2591.7,2591.4,0.55]
[1724792690437,3.85865,2591.6,2591.4,0.55]
[1724792696142,3.85876,2591.5,2591.4,0.55]
[1724792696343,3.85898,2591.4,2591.3,0.55]
[1724792696642,3.85898,2591.4,2591.2,0.79718]
[1724792697418,0.22057284,2591.3,2591.2,0.79718]
[1724792697625,0.40402233,2591.9,2591.3,2.31]
[1724792697833,3.85826,2591.9,2591.8,3.99107302]
[1724792698035,3.85797,2592.1,2591.8,0.55]
[1724792698343,3.85797,2592.1,2591.4,2.2882]
[1724792698344,3.85829,2591.9,2591.4,2.2882]
[1724792698521,3.8585,2591.7,2591.5,0.55]
[1724792698715,3.85832,2591.8,2591.5,0.55]
[1724792699219,3.85795,2592.1,2591.7,2.316]
[1724792699422,3.85795,2592.1,2591.8,0.55]
[1724792700361,7.7159,2592.1,2591.8,0.55]
[1724792700842,7.71591,2592.1,2591.8,0.55]
[1724792701143,3.85795,2592.1,2591.8,0.55]
[1724792701534,7.71591,2592.1,2591.8,0.55]
[1724792702452,3.85802,2592.0,2591.8,0.55]
[1724792702744,3.85802,2592.0,2591.7,0.55]
[1724792705117,3.85795,2592.1,2591.7,0.55]
[1724792705618,0.20594974,2592.0,2591.7,0.55]
[1724792706438,4.06404974,2592.0,2591.7,0.55]
[1724792708123,3.85829,2591.9,2591.7,0.55]
[1724792708364,3.85832,2591.8,2591.7,0.55]
[1724792708537,4.06426974,2591.8,2591.7,0.55]
[1724792708851,4.06426974,2591.8,2591.5,0.55]
[1724792709053,4.06426974,2591.8,2591.5,2.27029498]
[1724792709683,3.85857,2591.7,2591.5,0.55]
[1724792709857,3.85857,2591.7,2591.3,7.696898]
[1724792709858,3.85886,2591.5,2591.3,7.37]
[1724792710358,0.20674473,2591.4,2591.3,7.37]
[1724792710546,0.20674473,2591.4,2591.3,9.349]
[1724792710743,3.85886,2591.5,2591.3,9.349]
[1724792711260,6.27596,2591.7,2591.4,0.55]
[1724792711589,0.20674473,2591.6,2591.4,0.55]
[1724792711785,6.27596,2591.7,2591.4,0.55]
[1724792711948,0.20674473,2591.5,2591.4,0.55]
[1724792712143,6.27596,2591.7,2591.4,1.5399]
[1724792712378,0.20674473,2591.5,2591.4,0.55]
[1724792712682,6.27596,2591.7,2591.4,0.55]
[1724792713067,0.20674473,2591.6,2591.4,0.55]
[1724792713272,6.27596,2591.7,2591.4,0.55]
[1724792713661,0.20674473,2591.6,2591.4,0.55]
[1724792713985,0.20674473,2591.6,2591.4,3.9597]
[1724792718290,0.20674473,2591.6,2591.4,0.55]
[1724792718589,0.20674473,2591.6,2591.3,0.55]
[1724792723209,4.06536473,2591.6,2591.3,0.55]
[1724792723396,0.20674473,2591.6,2591.3,0.55]
[1724792725403,4.06536473,2591.6,2591.3,0.55]
[1724792725919,4.06536473,2591.6,2591.2,0.55]
[1724792726695,0.20674473,2591.6,2591.2,0.55]
[1724792726970,0.20674473,2591.6,2591.2,1.968679]
[1724792728689,3.85855,2591.7,2591.2,1.968679]
[1724792728884,0.20637503,2591.6,2591.2,0.55]
[1724792729113,3.85914,2591.3,2591.0,7.37]
[1724792729319,2.4588,2591.2,2591.0,7.37]
[1724792729474,3.85914,2591.3,2591.0,7.37]
[1724792729673,0.20637503,2591.2,2590.7,17.96091302]
[1724792729880,0.20637503,2591.2,2590.9,6.24295]
[1724792730078,3.85899,2591.4,2590.9,7.92402302]
[1724792730278,0.20637503,2591.3,2590.9,7.92402302]
[1724792730512,0.20637503,2591.3,2591.0,1.61954443]
[1724792730921,3.85899,2591.4,2591.0,1.61954443]
[1724792730922,0.19949586,2591.2,2591.0,1.61954443]
[1724792731226,3.47598497,2591.4,2591.0,1.61954443]
[1724792731426,0.19949586,2591.1,2591.0,1.61954443]
[1724792731601,5.82398497,2591.4,2591.0,1.61954443]
[1724792731801,0.27121751,2591.1,2591.0,0.55]
[1724792732117,0.27088468,2591.1,2591.0,0.55]
[1724792732319,5.82398497,2591.4,2591.0,0.55]
[1724792732515,0.27088468,2591.1,2591.0,0.55]
[1724792732720,5.82398497,2591.4,2591.0,1.50645213]
[1724792733029,0.27088468,2591.1,2591.0,1.50645213]
[1724792733232,5.82398497,2591.4,2591.0,1.50645213]
[1724792733394,0.27088468,2591.1,2591.0,1.50645213]
[1724792733597,5.82398497,2591.4,2591.0,1.50645213]
[1724792733782,0.27088468,2591.1,2591.0,1.50645213]
[1724792733986,5.82398497,2591.4,2591.0,1.50645213]
[1724792734209,0.27088468,2591.1,2591.0,1.50645213]
[1724792734710,5.82398497,2591.4,2591.0,1.50645213]